Cogmind - Beta 14 @@@ ROGUE MODE // 2024.08.15 @ 21:02:50 Player: Wotf Result: Destroyed by 8R-AWN with 8R-AWN's Boregun Performance ------------- Evolutions (0) 0 Regions Visited (3) 600 Robots Destroyed (38) 190 Value Destroyed (743) 743 Prototype IDs (25) 500 Alien Tech Used (0) 0 Bonus (365) 365 TOTAL SCORE: 2398 Bonus ------- Follower Combat Kills 81 Aligned with FarCom 300 Friendly Fire -16 Cogmind --------- Core Integrity 0/250 Matter 5/300 Energy 83/100 System Corruption 1% Temperature Warning (332) Movement Core (50) Location -10/Exiles Parts ------- > --- POWER (1) -------- (None) > --- PROPULSION (2) --- (None) > --- UTILITY (2) ------ (None) > --- WEAPON (2) ------- Assault Rifle > --- INVENTORY (5) ---- Structural Scanner Signal Interpreter ECM Suite Cloak of Protection Hacking Suite Peak State ------------ > --- POWER ------------ Ion Engine > --- PROPULSION ------- Improved Treads Improved Treads > --- UTILITY ---------- Large Storage Unit Seismic Detector > --- WEAPON ----------- EMP Blaster Rocket Launcher > --- INVENTORY -------- Light Nuclear Core Improved Treads Cooling System Structural Scanner Visual Processing Unit Sensor Array Signal Interpreter ECM Suite Cloak of Protection Hacking Suite Beam Cannon Assault Rifle Assault Rifle Light Cannon EMP Blaster [Rating: 14] Favorites ----------- Power Light Ion Engine Engine Light Ion Engine Power Core Light Nuclear Core Propulsion Improved Treads Treads Improved Treads Utility Large Storage Unit Device Seismic Detector Storage Large Storage Unit Weapon Assault Rifle Energy Gun Medium Laser Energy Cannon Beam Cannon Ballistic Gun Assault Rifle Ballistic Cannon Light Cannon Launcher EMP Blaster Build | -11 -10 -10 -10 ------- Run | Yrd Mat Min Exi Slots Evolved . | . . . . Power . | . . . . Propulsion . | . . . . Utility . | . . . . Weapon . | . . . . Parts Attached 43 | 6 21 7 9 Power 4 | 1 1 1 1 Engine 3 | 1 1 1 . Core 1 | . . . 1 Reactor . | . . . . Propulsion 9 | 2 6 . 1 Treads 9 | 2 6 . 1 Leg . | . . . . Wheel . | . . . . Hover . | . . . . Flight . | . . . . Utility 6 | 1 3 2 . Device 3 | . 1 2 . Storage 3 | 1 2 . . Processor . | . . . . Hackware . | . . . . Protection . | . . . . Artifact . | . . . . Weapon 24 | 2 11 4 7 Energy Gun 2 | 1 1 . . Energy Cannon 2 | . . 1 1 Ballistic Gun 10 | 1 6 1 2 Ballistic Cannon 3 | . 1 1 1 Launcher 7 | . 3 1 3 Special Weapon . | . . . . Impact Weapon . | . . . . Slashing Weapon . | . . . . Piercing Weapon . | . . . . Special Melee Weapon . | . . . . Unidentified Prototypes . | . . . . Parts Lost 13 | . 1 . 12 Power 2 | . . . 2 Propulsion 3 | . . . 3 Utility 1 | . . . 1 Weapon 7 | . 1 . 6 Highest Loss Streak 12 | . 1 . 12 To Critical Strikes 7 | . . . 7 Average Slot Usage (%) 97 | . 97 100 90 Engine 13 | . 14 14 10 Treads 27 | . 27 28 22 Device 13 | . 12 14 12 Storage 14 | . 14 14 14 Energy Cannon 2 | . . 3 10 Ballistic Gun 17 | . 18 19 3 Ballistic Cannon 3 | . 2 3 8 Launcher 4 | . 6 . 4 Peak Build Rating 14 | 6 11 12 14 Average Rating 9 | 5 8 11 10 On Entrance 7 | . 6 11 11 Naked Turns . | . . . . Heaviest Build 34 | 12 31 32 34 Greatest Support 46 | 40 46 46 46 Greatest Overweight (x) 8 | 2 8 . . Average Overweight (x) . | . . . . Largest Inventory Capacity 15 | 8 15 15 15 Average Capacity 14 | 7 14 15 14 Most Carried 15 | 7 15 15 15 Average Carried 13 | 4 12 14 13 Final Capacity 15 | 8 15 15 5 Final Carried 15 | 7 15 15 5 Class Distribution -------------------- 100% | Mutant Dominant Class ---------------- Mutant | -10/Materials Mutant | -10/Mines Mutant | -10/Exiles Resources | -11 -10 -10 -10 ----------- Run | Yrd Mat Min Exi Matter Collected 1136 | 272 652 187 25 Remotely . | . . . . Salvage Created 1236 | 82 934 133 87 Parts 79 | 1 69 9 . Haulers Intercepted . | . . . . Recyclers Shooed 3 | . 3 . . Parts Field Recycled . | . . . . Retrieved Matter . | . . . . Parts Self-Destructed . | . . . . Prevented . | . . . . Kills | -11 -10 -10 -10 ------- Run | Yrd Mat Min Exi Combat Hostiles Destroyed 33 | . 23 3 7 Guns 6 | . 5 1 . Cannons 4 | . 4 . . AOE 23 | . 14 2 7 Classes Destroyed 8 | 1 6 . 1 Worker 2 | . 2 . . Builder 1 | . 1 . . Recycler 5 | 1 2 2 . Operator 1 | . 1 . . Watcher 3 | . 3 . . Swarmer 12 | . 9 3 . Grunt 14 | . 14 . . Assembled 7 | . . . 7 Best Kill Streak 7 | 1 6 2 7 Combat Bots Only 7 | . 4 2 7 Max Kills in Single Turn 3 | 1 3 2 3 Gunslinging . | . . . . Exploded 3 | . 3 2 3 Melee . | . . . . Uniques/NPCs Destroyed . | . . . . Combat | -11 -10 -10 -10 -------- Run | Yrd Mat Min Exi Hostile Shots Fired 167 | . 62 3 102 Missed 52 | . 20 1 31 Damage Taken 1684 | . 424 17 1243 Core 258 | . 61 . 197 Absorbed by Shields . | . . . . Regen/Repaired (Parts) 17 | . 17 . . Core Remaining (%) 100 | 100 . . . Volleys Fired 171 | 4 93 20 54 Largest 2 | 2 2 2 2 Hottest 80 | 70 68 40 80 Shots Fired 236 | 8 123 27 78 Gun 113 | 8 73 12 20 Cannon 72 | . 26 14 32 Launcher 51 | . 24 1 26 Special . | . . . . Kinetic 154 | 4 99 26 25 Thermal 31 | 4 . . 27 Explosive 17 | . 3 1 13 Electromagnetic 34 | . 21 . 13 Robot Hit Streak 17 | 5 10 4 17 Robot Miss Streak 6 | 1 6 2 4 Penetration Max . | . . . . Secondary Targets . | . . . . Shots Hit Robots 123 | 7 57 6 53 Core Hits 69 | 2 44 7 16 Critical Kills . | . . . . Critical Parts Destroyed 1 | . 1 . . Critical Strikes 2 | 1 1 . . Burn 1 | 1 . . . Destroy 1 | . 1 . . Melee Attacks . | . . . . Impact . | . . . . Slashing . | . . . . Piercing . | . . . . Sneak Attacks . | . . . . Combat Hostiles . | . . . . Follow-up Attacks . | . . . . Damage Inflicted 2417 | 88 1603 148 578 Guns 793 | 88 468 79 158 Cannons 202 | . 131 . 71 Explosions 1422 | . 1004 69 349 Melee . | . . . . Ramming . | . . . . Kinetic 929 | 38 599 79 213 Thermal 243 | 50 177 . 16 Explosive 468 | . 197 69 202 Electromagnetic 777 | . 630 . 147 Impact . | . . . . Slashing . | . . . . Piercing . | . . . . Highest Corruption 1 | . 1 1 1 Average Corruption 1 | . 1 1 1 Corruption Purged . | . . . . Corruption Blocked . | . . . . Effects 28 | . 14 9 5 Message Errors 6 | . 3 2 1 Matter Fused 5 | . 4 1 . Heat Flow Errors 3 | . 1 1 1 Energy Discharges 4 | . 2 1 1 Data Loss (minor) 5 | . 3 2 . Misfires 5 | . 1 2 2 Overload Shots . | . . . . Overflow Damage 52 | . 26 . 26 Projectiles . | . . . . Explosions 52 | . 26 . 26 Melee . | . . . . Knockbacks 3 | . . . 3 Impact . | . . . . Kinetic 3 | . . . 3 Secondary . | . . . . Self-Inflicted Damage 55 | . 17 . 38 Shots 5 | . 3 . 2 Rammed . | . . . . Targets Rammed . | . . . . Kicked . | . . . . Crushed . | . . . . Highest Temperature 487 | 36 242 254 487 Average Temperature 142 | 19 52 131 186 Received Heat Transfer 117 | . 117 . . Effects 3 | . . . 3 Interference 1 | . . . 1 Damage (minor) 2 | . . . 2 Siege Activations . | . . . . Robots Corrupted . | . . . . Combat Hostiles . | . . . . Parts Fried 3 | . 3 . . Impact Corruptions . | . . . . Robots Melted . | . . . . Combat Hostiles . | . . . . Parts Melted . | . . . . Heat Transferred 616 | 222 250 . 144 Parts Sabotaged . | . . . . Parts Stolen . | . . . . Parts Stripped . | . . . . Power Chain Reactions 6 | . 6 . . Alert | -11 -10 -10 -10 ------- Run | Yrd Mat Min Exi Peak Influence 264 | 5 264 168 . Initial 66 | . 3 66 . Average 105 | 1 139 52 . Maximum Alert Level 1 | . 1 . . Low Security (%) 87 | 100 80 100 . Level 1 12 | . 19 . . Level 2 . | . . . . Level 3 . | . . . . Level 4 . | . . . . Level 5 . | . . . . High Security . | . . . . Max Security . | . . . . Squads Dispatched 5 | . 5 . . Investigation 4 | . 4 . . Extermination . | . . . . Reinforcement 1 | . 1 . . Assault . | . . . . Garrison . | . . . . Intercept . | . . . . Searches Triggered . | . . . . Construction Impeded . | . . . . Haulers Reinforced . | . . . . Active Scanning Responses . | . . . . Cargo Convoy Interrupts . | . . . . Stealth | -11 -10 -10 -10 --------- Run | Yrd Mat Min Exi Distress Signals 1 | . 1 . . Communications Jammed . | . . . . Distress Signals . | . . . . Times Spotted 50 | . 36 6 8 Peak Tracking Total 9 | . 5 3 9 Tactical Retreats 2 | . 1 1 . Traps | -11 -10 -10 -10 ------- Run | Yrd Mat Min Exi Traps Triggered 3 | . 3 . . Indirectly . | . . . . Trap Hack Attempts . | . . . . Triggered . | . . . . Disarmed . | . . . . Reprogrammed . | . . . . Reused . | . . . . Traps Extracted . | . . . . Installed . | . . . . Triggered . | . . . . Machines | -11 -10 -10 -10 ---------- Run | Yrd Mat Min Exi Machines Disabled 6 | . 1 1 4 Max in Single Turn 2 | . 1 1 2 Machines Repaired . | . . . . Machines Dismantled . | . . . . Machines Sabotaged . | . . . . Overloaded Fab Kills . | . . . . Hacking | -11 -10 -10 -10 --------- Run | Yrd Mat Min Exi Machines Accessed 8 | . 7 . 1 Terminals 6 | . 6 . . Fabricators . | . . . . Repair Stations 1 | . 1 . . Recycling Units . | . . . . Scanalyzers . | . . . . Garrison Access . | . . . . Total Hacks 26 | . 25 . 1 Successful 10 | . 9 . 1 Failed 15 | . 15 . . Catastrophic 1 | . 1 . . Database Lockouts 1 | . 1 . . Manual 14 | . 13 . 1 Terminals 21 | . 21 . . Fabricators . | . . . . Repair Stations 4 | . 4 . . Recycling Units . | . . . . Scanalyzers . | . . . . Garrison Access . | . . . . Terminal Hacks 7 | . 6 . 1 Robot Analysis 4 | . 4 . . Prototype ID Bank 1 | . 1 . . Hauler Manifests 1 | . 1 . . Derelict Proto ID Bank 1 | . . . 1 Fabricator Hacks . | . . . . Repair Station Hacks 2 | . 2 . . Scan Component 1 | . 1 . . Repair 1 | . 1 . . Recycling Unit Hacks . | . . . . Scanalyzer . | . . . . Garrison Access Hacks . | . . . . Unauthorized Hacks 1 | . 1 . . Terminals 1 | . 1 . . Track 1 | . 1 . . Fabricators . | . . . . Repair Stations . | . . . . Recycling Units . | . . . . Scanalyzers . | . . . . Garrison Access . | . . . . Data Cores Recovered . | . . . . Used . | . . . . Hacking Detections 7 | . 7 . . Full Trace Events 2 | . 2 . . Feedback Events . | . . . . Feedback Blocked . | . . . . Robot Schematics Acquired . | . . . . Robots Built . | . . . . Authchips . | . . . . Time . | . . . . Total Robot Build Rating . | . . . . Part Schematics Acquired . | . . . . Parts Built . | . . . . Authchips . | . . . . Time . | . . . . Total Part Build Rating . | . . . . Parts Repaired 1 | . 1 . . Time 18 | . 18 . . Parts Recycled . | . . . . Recycled Matter . | . . . . Retrieved Matter . | . . . . Retrieved Components . | . . . . Parts Scanalyzed . | . . . . Part Schematics Acquired . | . . . . Parts Damaged . | . . . . Bothacking | -11 -10 -10 -10 ------------ Run | Yrd Mat Min Exi Used RIF Installer . | . . . . Robots Hacked . | . . . . Non-combat . | . . . . Combat . | . . . . Robot Hacks Applied . | . . . . Relay Couplers Released . | . . . . Fabnet Peak Effective % . | . . . . Robots Rewired . | . . . . Allies Hacked . | . . . . Hacks Repelled . | . . . . Allies | -11 -10 -10 -10 -------- Run | Yrd Mat Min Exi Total Allies 2 | . . 2 . Largest Group 2 | . . 2 . Highest-Rated Group 47 | . . 47 . Highest-Rated Ally 31 | . . 31 . Total Orders . | . . . . Ally Attacks 37 | . . 37 . Total Damage 377 | . . 377 . Kills 5 | . . 5 . Allies Corrupted . | . . . . Allies Melted . | . . . . Intel | -11 -10 -10 -10 ------- Run | Yrd Mat Min Exi Robot Analysis Total 4 | . 4 . . Derelict Logs Recovered 1 | . . 1 . Drone Launches . | . . . . Drone Recoveries . | . . . . Exploration | -11 -10 -10 -10 ------------- Run | Yrd Mat Min Exi Turns Passed 4252 | 140 2467 1262 383 Spaces Moved 2289 | 72 1354 710 153 Core 9 | 3 1 . 5 Treads 2280 | 69 1353 710 148 Legs . | . . . . Wheels . | . . . . Hover . | . . . . Flight . | . . . . Fastest Speed 50 | 50 160 160 50 Average Speed 159 | 156 160 160 156 Slowest Speed 450 | 160 450 160 160 Overloaded Moves . | . . . . Propulsion Burnouts . | . . . . Robots Hopped . | . . . . Cave-ins Triggered . | . . . . Exploration Rate (%) 60 | 4 98 98 41 Regions Visited 3 Branch Regions 2 Pre-discovered Areas . | . . . . Known Exits Taken . | . . . . Unknown Exits Taken 3 | 1 1 1 . Scrap Searched 2 | . . 2 . Spaces Dug . | . . . . Terrain Destroyed 82 | . 45 6 31 Melee . | . . . . Projectile . | . . . . AOE 82 | . 45 6 31 Terrain Rammed . | . . . . Walls Destroyed . | . . . . Machines Disabled . | . . . . Actions | -11 -10 -10 -10 --------- Run | Yrd Mat Min Exi Total 2654 | 88 1534 810 222 Wait 96 | . 30 66 . Move 2286 | 71 1353 709 153 Hop . | . . . . Pick Up 30 | 7 18 4 1 Fast Attach 12 | 6 6 . . Attach 10 | . 2 1 7 Detach 1 | . 1 . . Swap 21 | . 13 6 2 Drop 27 | . 18 4 5 Fire 171 | 4 93 20 54 Melee . | . . . . Ram . | . . . . Kick . | . . . . Crush . | . . . . Escape Stasis . | . . . . Rewire . | . . . . Trap . | . . . . Miscellaneous . | . . . . Route ------- -11/Scrapyard -10/Materials (discovered 4 exits: [*Mat x3] / [*Min]) -10/Mines (discovered 4 exits: [*Mat x2] / *Exi / [*Sub]) -10/Exiles History --------- Turn | Location | Event 47 | -11/Scrapyard | Discovered new exit (range 14) 141 | -11/Scrapyard | Entered Materials 303 | -10/Materials | Discovered new exit (range 10) 316 | -10/Materials | Build established: Mutant 365 | -10/Materials | Central database locked down 1010 | -10/Materials | Discovered new exit (range 6) 1307 | -10/Materials | Repaired Corrupted Aluminum Leg 1828 | -10/Materials | Discovered new exit (range 6) 1903 | -10/Materials | Discovered new exit (range 3) 2608 | -10/Materials | Entered Mines 2849 | -10/Mines | Discovered new exit (range 15) 2872 | -10/Mines | Received a Rocket Launcher from a helpful Derelict 3012 | -10/Mines | Discovered new exit (range 11) 3511 | -10/Mines | Excavation squad dispatched 3511 | -10/Mines | A large section of the Mines collapsed 3716 | -10/Mines | Discovered new exit (range 11) 3753 | -10/Mines | Deemed a non-threat by the Exiles lab entrance 3753 | -10/Mines | Discovered new exit (range 5) 3793 | -10/Mines | Learned Materials trap positions 3870 | -10/Mines | Entered Exiles 3910 | -10/Exiles | Met 8R-AWN 3936 | -10/Exiles | Met EX-HEX 3987 | -10/Exiles | Met EX-BIN 4006 | -10/Exiles | Aligned with FarCom system 4008 | -10/Exiles | Given EX-Vault access code 4046 | -10/Exiles | Opened EX-Vault 4055 | -10/Exiles | Found Cloak of Protection 4088 | -10/Exiles | Warned to stay clear of 0b10 Research branches 4091 | -10/Exiles | Attacked by the Exiles 4137 | -10/Exiles | Destroyed 7 combat bots 4201 | -10/Exiles | Core integrity fell below 50% 4233 | -10/Exiles | Core integrity fell below 20% 4253 | -10/Exiles | Destroyed by 8R-AWN with 8R-AWN's Boregun Last Messages --------------- 04228_ Penetrated by HV Slug. 04236_ Critical hit (Destroy). 04236_ Assault Rifle destroyed. 04240_ Penetrated by HV Slug. 04245_ Overheating: Lrg. Storage Unit damaged (-102). 04245_ Penetrated by HV Slug. 04245_ Critical hit (Destroy). 04245_ Beam Cannon destroyed. 04249_ Overheating: System interference. 04249_ Assault Rifle temporarily disabled. 04249_ Penetrated by HV Slug. 04249_ HV Slug penetrates Wall. 04249_ Dropped Cooling System. 04249_ Dropped Sensor Array. 04250_ Dropped Visual Processing Unit. 04250_ Dropped Lrg. Storage Unit. 04251_ The unstable cave ceiling collapses. 04253_ Penetrated by HV Slug. 04253_ HV Slug penetrates Machine. 04253_ Penetrated by HV Slug. Map ----- +----------------------------------------------------+ | ?????????????????""""""?# #???###????????????? | | ?????????????????"""" ## #??????????????????? | | ????????????????#""X" #??????????????????? | | ????????????????#" #??????????????????? | | ????????????????#" ## #??????????????????? | | ????????????????#""""""?# #?#########????????? | | ????????????????##"###?## #?#"""""""#????????? | | ??????????????????????? # #?#"""""""#????????? | | ???????????????????# ?? # #?#"""""""#????????? | | ???????????????????? ?"" ###"" """"#????????? | | ????????????????????# ?# """"#????????? | | ????????????????????# # """#????????? | | ????????????????????? # """#????????? | | ?????????????????????# " """#????????? | | ?????????????????????? " """#????????? | | ????????????????????##?" """#????????? | | ????????????????????# ##" """"????????? | | ?????????????????????# # """#????????? | | ??????????????????????# ; """"????????? | | ????????????????????####; ! #????????? | | ????????????????????? ## !!! """"#????????? | | ??????????????????????#;# ## #####????????? | | ??????????????????????## ######????????????? | | ???????????????????####"" g # # ???????????????? | | ?????????????????#""""""" ## ?????????????? | | ?????????????????""" " " @ # # ##########??? | | ?????????????????""" % # #"""""""""##?? | | ???????????????? " " """ """"##? | | ????????????? "" " #? | | ????????????? " """#? | | ???????????? " "#? | | ???????????? " "## | | ???????????? ""# | | ????????????? """"" "" | | ????????????? ###### | | ?????????????? ""#?????### | | ?????????????? """#?????????### | | ???????????????????????????????#" " | | ???????????????????????????????#"" | | ???????????????????????????????"""" | | ???????????????????????????????? | | ??????????????????????????????? | | ?????????????????????????????? | | ?????????????????????????????? | | ?????????????????????????????? " | | ??????????????????????????????"" """ | | ???????????????????????????????"" " " ""#" | | ??????????????????????????????????""" ""?##""""""" | | ?????????????????????????????????????"????######## | | ?????????????????????????????????????????????????? | +----------------------------------------------------+ Best States ------------- Heat Dissipation 25 Energy Generation 14 Energy Capacity 250 Matter Stores 300 Matter Capacity 300 Sight Range 16 Terrain Scan Density 10 Evasion (%) 40 Recoil Reduction 2 Item Schematics ----------------- None Robot Schematics ------------------ None Fabricated ------------ Nothing Alien Tech Used ----------------- None Achievements -------------- root@ Challenges ------------ None Game ------ Seed ClaymoresRainbowRipteeth Manual? 0 Play Time 00:49:03 Cumulative 36.6 hours Start 2024.08.15 @ 00:25:03 End 2024.08.15 @ 21:02:50 Sessions 7 Manual Loads 0 Difficulty Rogue Special Mode None Game No. 29 Rogue 17 Adventurer 12 Explorer 0 Win Type - Total 0 Types 0/0/0/0/0/0/0/0/0 Lore% 10 Gallery% 22 Achievement% 24 Wizard Run 0 Options --------- Layout 0 ASCII 0 Keyboard 0 Movement Numpad Keybinds 0 Fullscreen 2 Font 18/SmallcapsGlow Map View 76x50 Zoom Use 0% Tactical HUD 1 Map Filters NONE Filters NONE Steam 1 RUN: ca18c7b0-cb7d-48b1-88c3-e6cc7de84d5e